bitfinex/quotes_ETHUSD_20220112
["timestamp","ask_amount","ask_price","bid_price","bid_amount"]
[1641994087322,1.86893724,3317.4,3316.8,5.185]
[1641994087521,0.90532701,3317.1,3316.9,1.0]
[1641994087719,0.90532701,3317.1,3317.0,4.6035]
[1641994087920,0.90532701,3317.1,3317.0,7.9035]
[1641994088125,1.08509083,3317.7,3317.1,5.75]
[1641994088323,0.1205,3318.5,3317.2,1.435]
[1641994088522,0.00625266,3317.6,3317.3,0.3]
[1641994088725,0.00625266,3317.6,3317.5,6.50334]
[1641994088926,2.08937329,3318.9,3317.5,6.93834]
[1641994089125,2.08937329,3318.9,3317.5,7.93834]
[1641994089325,0.01307374,3318.8,3317.6,1.0]
[1641994089524,0.01307374,3318.8,3317.6,1.435]
[1641994089824,0.7533481,3318.4,3317.7,0.3]
[1641994090226,2.32522783,3318.3,3317.7,0.3]
[1641994090427,0.01023162,3318.3,3317.8,0.37667]
[1641994090631,0.0096632,3318.2,3318.1,4.85337]
[1641994090867,0.0096632,3318.2,3318.1,0.75337]
[1641994091871,0.0096632,3318.2,3317.8,1.50673]
[1641994091872,0.15150638,3318.1,3317.8,1.50673]
[1641994092271,0.00852635,3318.0,3317.8,1.50673]
[1641994092674,0.00852635,3318.0,3317.6,0.435]
[1641994092675,0.00795793,3317.9,3317.6,0.435]
[1641994093075,0.00738951,3317.8,3317.6,0.435]
[1641994093474,0.15150638,3318.1,3317.6,0.435]
[1641994093475,0.00682108,3317.7,3317.6,0.435]
[1641994093973,0.00682108,3317.7,3317.6,1.18842]
[1641994094376,0.00682108,3317.7,3317.1,1.94207]
[1641994094621,0.15150638,3318.1,3317.2,4.9]
[1641994094818,1.83232527,3317.4,3317.2,0.00284211]
[1641994095424,1.5071795,3317.7,3317.3,0.75354]
[1641994095822,1.5071795,3317.7,3317.4,0.00170527]
[1641994096024,0.7535341,3317.6,3317.4,0.00170527]
[1641994096223,0.00113685,3317.9,3317.4,0.00170527]
[1641994096224,1.50817765,3317.9,3317.4,0.00170527]
[1641994096423,1.6987706,3317.8,3317.5,0.75353]
[1641994096623,1.6987706,3317.8,3317.4,0.00170527]
[1641994097726,1.5071894,3317.7,3317.4,0.00170527]
[1641994098031,0.3,3317.7,3317.1,0.00341054]
[1641994098304,0.1205,3317.6,3317.1,0.00341054]
[1641994098488,0.90505928,3317.4,3317.0,0.00397896]
[1641994098893,0.90505928,3317.4,3317.1,0.75349]
[1641994099696,0.90505928,3317.4,3317.2,1.50706]
[1641994099897,0.90505928,3317.4,3317.0,0.00397896]
[1641994100096,0.90505928,3317.4,3317.3,0.00227369]
[1641994100296,0.90505928,3317.4,3317.0,0.00397896]
[1641994100500,1.6987706,3317.8,3317.0,0.00397896]
[1641994100897,1.9987706,3317.8,3317.0,3.47533092]
[1641994101097,1.6987706,3317.8,3317.0,1.51107896]
[1641994101296,1.6987706,3317.8,3317.4,0.75355]
[1641994101297,0.7535281,3317.6,3317.4,0.75355]
[1641994101696,0.7535281,3317.6,3317.5,0.00113684]
[1641994103232,0.7535281,3317.6,3317.3,1.35656369]
[1641994103429,0.7535281,3317.6,3317.1,0.435]
[1641994103630,0.90439948,3317.2,3317.1,0.435]
[1641994103930,0.90439948,3317.2,3317.1,1.18862]
[1641994104131,2.85591055,3317.2,3316.9,1.50717]
[1641994104331,2.85591055,3317.2,3316.7,0.435]
[1641994104531,2.85591055,3317.2,3317.0,0.00284212]
[1641994104730,4.36332075,3317.2,3317.0,0.00284212]
[1641994105533,0.3,3317.1,3317.0,0.00284212]
[1641994105792,0.7537774,3316.9,3316.5,0.00568424]
[1641994105986,0.90455018,3316.6,3316.3,0.00682109]
[1641994106189,1.44042698,3317.0,3316.3,0.00682109]
[1641994106586,1.44042698,3317.0,3316.3,0.38369109]
[1641994106786,1.44042698,3317.0,3316.4,0.75379]
[1641994106986,0.7537635,3316.7,3316.4,0.76004266]
[1641994107192,2.14412682,3316.6,3316.5,0.00568424]
[1641994107792,6.99882682,3316.6,3316.5,0.00568424]
[1641994107991,3.49882682,3316.6,3316.5,0.00568424]
[1641994108191,3.49882682,3316.6,3316.4,0.5]
[1641994108592,3.49882682,3316.6,3316.5,0.00568424]
[1641994108790,3.19882682,3316.6,3316.5,0.00568424]
[1641994108990,2.14412682,3316.6,3316.5,0.00568424]
[1641994109191,2.89793262,3316.6,3316.5,0.00568424]
[1641994109393,2.89793262,3316.6,3316.1,0.50795793]
[1641994109635,2.14412682,3316.6,3316.2,0.00738951]
[1641994109834,2.44412682,3316.6,3316.2,0.38427951]
[1641994110038,2.14412682,3316.6,3316.2,0.38427951]
[1641994110237,2.14412682,3316.6,3316.3,0.00682109]
[1641994110636,2.14412682,3316.6,3316.2,0.00738951]
[1641994110841,2.44412682,3316.6,3316.2,0.00738951]
[1641994111337,2.44412682,3316.6,3316.3,0.75379]
[1641994111537,0.00170527,3316.5,3316.3,0.75379]
[1641994111936,0.00113685,3316.4,3316.3,0.75379]
[1641994114476,0.00113685,3316.4,3316.3,2.974477]
[1641994115278,0.00113685,3316.4,3316.3,2.220687]
[1641994116277,0.00113685,3316.4,3315.7,2.220687]
[1641994116278,7.7,3316.3,3315.7,2.220687]
[1641994116483,7.7,3316.3,3314.8,0.58724959]
[1641994116484,9.16863885,3316.3,3315.1,3.85370021]
[1641994116678,0.7540686,3315.9,3315.8,0.00227369]
[1641994116880,1.7595286,3315.9,3315.8,0.00227369]
[1641994117533,9.1695092,3315.9,3315.8,0.00227369]
[1641994117936,8.4154406,3315.9,3315.8,0.00227369]
[1641994118135,8.4154406,3315.9,3315.3,0.00511581]
[1641994118336,1.99112082,3316.0,3315.3,0.00511581]
[1641994118534,1.99112082,3316.0,3315.4,0.435]
[1641994118734,0.90544416,3316.0,3315.4,0.435]
[1641994118933,0.90544416,3316.0,3315.5,0.00397896]
[1641994119134,0.90544416,3316.0,3315.5,0.43897896]
[1641994119335,0.90544416,3316.0,3315.6,1.13074]
[1641994119536,0.90544416,3316.0,3315.6,0.38034054]
[1641994119734,0.90544416,3316.0,3315.7,0.00284212]
[1641994120534,1.89958954,3315.9,3315.7,0.00284212]
[1641994120786,0.75381,3317.0,3316.0,0.75383]
[1641994120980,1.5073607,3317.3,3316.1,0.435]
[1641994121382,1.5073607,3317.3,3315.8,0.50701502]
[1641994121581,2.31341846,3316.1,3315.9,0.435]
[1641994121779,0.07785904,3317.5,3316.0,0.435]
[1641994121980,0.07785904,3317.5,3316.1,0.5]
[1641994122180,0.07785904,3317.5,3316.2,0.435]
[1641994122778,1.68003725,3316.5,3316.2,0.435]
[1641994123384,1.68003725,3316.5,3316.1,0.02950364]
[1641994123585,1.68003725,3316.5,3316.2,0.435]
[1641994123785,1.68003725,3316.5,3316.3,2.56889211]
[1641994123985,1.68003725,3316.5,3316.3,3.00389211]
[1641994124826,0.90448736,3316.8,3316.3,1.435]
[1641994125029,0.90448736,3316.8,3316.3,0.435]
[1641994125229,0.90448736,3316.8,3316.5,0.01548949]
[1641994125430,0.90448736,3316.8,3316.6,0.435]
[1641994125635,0.00170527,3316.7,3316.6,0.435]
[1641994126636,0.00170527,3316.7,3316.6,4.485]
[1641994127034,0.00170527,3316.7,3316.6,8.35368017]
[1641994127234,0.00170527,3316.7,3316.6,4.30368017]
[1641994127637,0.00170527,3316.7,3316.6,3.00368017]
[1641994128033,0.00170527,3316.7,3316.6,2.56868017]
[1641994128484,3.55170527,3316.7,3316.6,2.56868017]
[1641994128681,3.55170527,3316.7,3316.3,0.0288]
[1641994128682,0.00170527,3316.7,3316.3,0.0288]
[1641994129085,0.00113684,3316.6,3316.3,0.0288]
[1641994129686,0.00113684,3316.6,3316.4,0.435]
[1641994129887,0.90448736,3316.8,3316.5,7.7]
[1641994130087,0.1206,3317.0,3316.6,0.44427926]
[1641994130288,0.90526684,3317.3,3316.7,7.7]
[1641994130488,0.90526684,3317.3,3317.1,0.01280921]
[1641994130489,0.90507566,3317.3,3317.1,0.01280921]
[1641994130687,0.90507566,3317.6,3317.2,8.1638]
[1641994130891,2.220687,3319.0,3317.3,0.15739263]
[1641994131086,0.00341055,3317.5,3317.4,0.59239263]
[1641994131488,0.00341055,3317.5,3317.4,8.92119263]
[1641994131690,0.00341055,3317.5,3317.4,12.04894053]
[1641994131888,0.00341055,3317.5,3317.4,9.92119263]
[1641994133336,0.00341055,3317.5,3317.4,8.92119263]
[1641994133543,2.220687,3319.0,3317.5,0.15739263]
[1641994133736,2.220687,3319.0,3317.7,0.15739263]
[1641994133938,0.00511581,3318.4,3317.9,0.15739263]
[1641994134140,0.00511581,3318.4,3318.1,0.15739263]
[1641994134339,0.90485454,3318.8,3318.3,5.35739263]
[1641994134539,2.98664775,3318.8,3318.5,0.15739263]
[1641994134739,0.00682108,3318.7,3318.5,0.59239263]
[1641994135141,0.90485454,3318.8,3318.5,0.15739263]
[1641994135142,6.55625265,3318.6,3318.5,0.15739263]
[1641994135339,0.00625265,3318.6,3318.5,0.15739263]
[1641994135539,2.35625265,3318.6,3318.5,0.15739263]
[1641994135975,4.36888696,3318.6,3318.5,0.15739263]
[1641994136178,0.74741109,3318.3,3318.2,0.0288]
[1641994136575,0.75195847,3318.3,3318.2,0.0288]
[1641994137781,0.95920408,3318.9,3318.2,0.0288]
[1641994138179,0.00284212,3318.8,3318.2,0.0288]
[1641994138584,0.0022737,3318.7,3318.3,0.435]
[1641994138983,0.00170527,3318.6,3318.2,0.0288]
[1641994139384,0.00113685,3318.5,3318.3,0.435]
[1641994139832,0.00113685,3318.5,3317.7,0.01278317]
[1641994140032,0.00113685,3318.5,3317.8,0.435]
[1641994140232,0.00113685,3318.5,3317.8,0.73784211]
[1641994140436,0.00113685,3318.5,3318.2,0.01774398]
[1641994140732,0.00113685,3318.5,3318.3,0.435]
[1641994140934,0.00113685,3318.5,3318.4,4.65]
[1641994141135,0.00113685,3318.5,3318.4,1.235]
[1641994141338,0.00113685,3318.5,3318.4,0.935]
[1641994142339,0.00113685,3318.5,3318.4,4.385]
[1641994142541,0.00113685,3318.5,3318.4,7.0411865]
[1641994142741,0.00113685,3318.5,3318.4,3.8911865]
[1641994143376,0.00113685,3318.5,3318.4,6.1118735]
[1641994145382,0.00113685,3318.5,3318.4,4.455687]
[1641994145583,0.00113685,3318.5,3318.4,2.720687]
[1641994146384,4.15113685,3318.5,3318.4,2.720687]
[1641994146587,0.00113685,3318.5,3318.4,2.720687]
[1641994147429,0.00113685,3318.5,3318.4,2.220687]
[1641994147630,0.00113685,3318.5,3318.4,4.44448618]
[1641994148028,0.00113685,3318.5,3318.4,5.74448618]
[1641994148229,0.95920408,3318.9,3318.5,5.75]
[1641994148430,0.95920408,3318.9,3318.7,0.00901111]
[1641994148628,0.00170527,3318.8,3318.7,0.435]
[1641994148829,0.95920408,3318.9,3318.8,7.7]
[1641994149028,0.95920408,3318.9,3318.8,9.435]
[1641994149230,0.2,3319.1,3318.9,3.7]
[1641994149427,0.2,3319.1,3319.0,6.185]
[1641994149629,0.2,3319.1,3319.0,6.485]
[1641994149832,0.2,3319.1,3319.0,8.29801336]
[1641994150631,0.2,3319.1,3318.8,1.0]
[1641994150632,0.2,3319.1,3318.4,2.220687]
[1641994150887,0.02411307,3319.0,3318.4,2.220687]
[1641994151081,0.14574992,3319.0,3318.5,0.00170527]
[1641994151479,0.12163685,3319.0,3318.5,0.00170527]
[1641994151882,0.12163685,3319.0,3318.7,1.65243103]
[1641994152085,0.00113685,3319.0,3318.7,1.65243103]
[1641994152888,0.90467718,3318.8,3318.7,1.95243103]
[1641994153085,0.90467718,3318.8,3318.7,1.65243103]
[1641994153286,0.90467718,3318.8,3318.5,0.00170527]
[1641994155439,0.00113685,3319.0,3318.5,0.00170527]
[1641994156335,2.34080859,3318.7,3318.5,0.00170527]
[1641994156536,0.00113685,3319.0,3318.5,0.00170527]
[1641994157337,1.05499952,3319.1,3318.5,0.00170527]
[1641994157537,0.1205,3319.0,3318.5,0.00170527]
[1641994157837,0.1205,3319.0,3318.5,0.00284212]
[1641994158293,0.01428515,3318.7,3318.4,1.31866093]
[1641994158582,1.73438537,3318.8,3318.4,1.31866093]
[1641994158583,4.65,3318.6,3318.4,1.31866093]
[1641994159381,0.00113685,3318.7,3318.4,1.31866093]
[1641994159588,0.00113685,3318.7,3318.5,0.00943716]
[1641994160386,0.00113685,3318.7,3318.4,1.31866093]
[1641994161088,0.00113685,3318.7,3318.4,0.41367402]
[1641994163531,0.00113685,3318.7,3318.5,0.01200029]
[1641994163830,0.00113685,3318.7,3318.4,0.41367402]
[1641994165233,0.00113685,3318.7,3318.1,1.46546695]
[1641994165634,0.00113685,3318.7,3318.2,1.9489142]
[1641994165888,0.00113685,3318.7,3318.2,1.9755079]
[1641994166088,0.00113685,3318.7,3318.3,0.00113685]
[1641994167392,0.00113685,3318.7,3318.3,0.50113685]
[1641994168189,0.00113685,3318.7,3318.3,2.19208659]
[1641994168391,0.00113685,3318.7,3318.3,0.50113685]
[1641994168989,0.90492824,3318.5,3318.3,0.50113685]
[1641994170231,0.90492824,3318.5,3318.3,0.00113685]
[1641994170431,0.90492824,3318.5,3318.4,0.5]
[1641994171037,1.2357995,3319.1,3318.5,7.7]
[1641994171241,1.2357995,3319.1,3318.6,2.45887082]
[1641994171435,0.00170527,3319.0,3318.6,0.735]
[1641994171736,0.15113685,3319.1,3318.5,7.53010545]
[1641994171737,0.00113684,3318.9,3318.5,7.53010545]
[1641994171937,0.00113684,3318.9,3318.6,3.00223911]
[1641994172138,0.00113684,3318.9,3318.7,2.27191307]
[1641994172341,0.00113684,3318.9,3318.8,0.5]
[1641994173780,0.00113684,3318.9,3318.8,3.47220447]
[1641994173980,0.00113684,3318.9,3318.8,4.07220447]
[1641994174181,0.00113684,3318.9,3318.8,2.1]
[1641994174382,0.00113684,3318.9,3318.8,4.15536968]
[1641994174885,0.90461444,3319.7,3318.9,7.7]
[1641994175084,0.90461444,3319.7,3319.0,3.435]
[1641994175282,0.00397897,3319.6,3319.0,1.735]
[1641994175582,0.90461444,3319.7,3319.3,0.5]
[1641994175583,0.00341054,3319.5,3319.3,0.5]
[1641994175984,0.00284212,3319.4,3319.3,0.5]
[1641994177435,0.00284212,3319.4,3319.3,2.79900323]
[1641994177829,0.00284212,3319.4,3319.3,0.5]
[1641994178031,4.90284212,3319.4,3319.3,0.5]
[1641994178230,4.90284212,3319.4,3318.4,3.85293233]
[1641994178231,0.40461071,3319.0,3318.4,3.85293233]
[1641994178628,0.40461071,3319.0,3318.5,0.00227369]
[1641994178828,0.40461071,3319.0,3318.6,1.64533447]
[1641994179030,0.40461071,3319.0,3318.7,0.5]
[1641994179232,0.40461071,3319.0,3318.7,0.50113684]
[1641994181476,2.15343055,3319.2,3318.7,0.50113684]
[1641994181883,0.00113685,3319.1,3318.7,0.50113684]
[1641994183981,0.1205,3319.0,3318.7,0.50113684]
[1641994184182,0.16288327,3318.1,3317.3,2.00403355]
[1641994184382,0.16288327,3318.1,3317.2,2.49875923]
[1641994184383,0.01858555,3318.0,3317.2,0.13819997]
[1641994184625,2.20714366,3317.8,3317.4,0.00738951]
[1641994184825,0.16288327,3318.1,3317.4,0.00738951]
[1641994185029,0.16288327,3318.1,3317.8,0.5]
[1641994185431,0.16288327,3318.1,3317.9,0.00454739]
[1641994186431,0.16288327,3318.1,3317.5,2.567583]
[1641994186432,7.7,3318.0,3317.5,2.567583]
[1641994186632,0.0399945,3317.8,3316.8,1.51225435]
[1641994186832,0.90443225,3317.0,3316.8,1.51225435]
[1641994187032,3.23091864,3317.0,3316.8,1.51225435]
[1641994187234,3.23091864,3317.0,3316.9,0.62615424]
[1641994187932,6.58091864,3317.0,3316.9,0.62615424]
[1641994188137,6.58091864,3317.0,3316.9,5.424e-05]
[1641994188383,0.90443225,3317.0,3316.3,1.51225435]
[1641994188584,0.90443225,3317.0,3316.4,0.00284211]
[1641994188984,5.49015109,3317.9,3316.4,0.00284211]
[1641994189383,1.91817232,3317.2,3316.4,0.00284211]
[1641994189784,0.00113685,3317.1,3316.4,0.00284211]
[1641994190985,0.90520948,3316.9,3316.4,0.00284211]
[1641994192542,0.00113685,3317.1,3316.4,0.00284211]
[1641994193151,0.00113685,3317.1,3316.5,0.435]
[1641994193342,0.00113685,3317.1,3316.8,0.01282395]
[1641994193539,0.00113685,3317.1,3316.9,0.435]
[1641994194140,0.90645833,3317.1,3316.9,0.435]
[1641994194741,0.00113685,3317.1,3316.9,0.435]
[1641994194943,0.9043071,3317.5,3317.0,0.04789201]
[1641994195142,0.01228787,3319.3,3317.1,0.435]
[1641994195445,0.00170527,3317.4,3317.1,1.338]
[1641994195640,0.00170527,3317.4,3317.1,1.638]
[1641994195883,0.00113685,3317.3,3317.1,0.73247357]
[1641994196084,0.00113685,3317.3,3317.2,0.435]
[1641994196684,0.00113685,3317.3,3317.2,2.985]
[1641994197085,0.00113685,3317.3,3317.2,3.985]
[1641994197284,0.00113685,3317.3,3317.2,3.285]
[1641994197485,1.68570787,3317.3,3317.2,1.735]
[1641994197786,1.68570787,3317.3,3317.2,0.735]
[1641994197991,1.68570787,3317.3,3317.2,0.435]
[1641994198186,1.68570787,3317.3,3317.0,0.5]
[1641994198587,0.00575682,3317.2,3317.0,0.5]
[1641994198789,1.68570787,3317.3,3317.0,0.5]
[1641994199187,0.45443286,3317.0,3316.8,0.120485]
[1641994199393,3.6,3317.2,3316.8,0.120485]
[1641994199655,3.6,3317.2,3316.9,0.00113685]
[1641994200461,3.6,3317.2,3316.9,3.685e-05]
[1641994200858,0.16527949,3317.1,3316.9,3.685e-05]
[1641994201465,0.16527949,3317.1,3315.6,1.51225435]
[1641994201466,7.7,3317.0,3315.6,1.51225435]
[1641994201668,2.16113007,3316.9,3315.6,1.51225435]
[1641994201869,0.90532148,3316.4,3315.6,1.51225435]
[1641994202062,7.7,3316.1,3315.2,0.1242]
[1641994202268,7.7,3316.1,3315.0,0.58426506]
[1641994202269,0.01275211,3315.3,3315.0,0.58426506]
[1641994202463,7.8206,3316.0,3315.0,0.58426506]
[1641994202464,0.1206,3315.2,3315.0,0.58426506]
[1641994202662,0.1206,3315.7,3315.1,2.0]
[1641994202862,0.01235179,3315.4,3315.2,2.29808359]
[1641994203285,7.7,3315.3,3314.4,3.71881381]
[1641994203485,7.7,3315.3,3313.8,1.0]
[1641994203486,0.00576456,3315.0,3313.8,1.0]
[1641994203694,0.1206,3314.9,3313.8,1.0]
[1641994203886,0.01269626,3314.5,3313.8,1.0]
[1641994204086,0.1206,3314.4,3313.8,1.0]
[1641994204492,1.93939848,3314.3,3313.8,1.0]
[1641994204690,0.1206,3314.2,3313.8,1.0]
[1641994205094,0.1206,3314.2,3313.9,0.04809421]
[1641994205290,0.1206,3315.5,3314.1,0.01220585]
[1641994205491,0.1206,3316.3,3314.2,0.00361267]
[1641994205691,0.1206,3316.9,3314.9,0.01210123]
[1641994205896,0.00113685,3317.3,3314.9,0.01210123]
[1641994205898,0.00113685,3317.3,3315.3,5.44]
[1641994205899,0.1206,3317.2,3315.3,5.44]
[1641994206092,0.1206,3317.2,3316.5,2.1557336]
[1641994206297,0.03602001,3319.0,3317.0,5.44]
[1641994206298,0.1205,3318.9,3317.0,5.44]
[1641994206493,2.220687,3319.0,3317.1,2.0]
[1641994206706,2.220687,3319.0,3317.2,0.00414741]
[1641994206897,7.35,3319.2,3317.2,0.00414741]
[1641994206898,7.35,3319.2,3317.3,7.7]
[1641994207159,7.35,3319.2,3318.7,5.44]
[1641994207160,0.01023162,3318.9,3318.7,5.44]
[1641994207357,2.0357416,3319.2,3318.9,6.2]
[1641994207358,0.96548834,3319.2,3318.9,6.2]
[1641994207662,1.08441641,3319.8,3319.1,5.44]
[1641994207962,0.01223747,3321.6,3319.8,7.7]
[1641994208161,0.2,3321.8,3320.4,5.44]
[1641994208364,0.2,3321.8,3320.5,1.69719967]
[1641994208664,29.90674859,3323.5,3320.9,7.71967489]
[1641994208665,3.761e-05,3323.2,3320.9,7.71967489]
[1641994208871,22.35,3325.8,3323.2,7.7]
[1641994208872,6.11,3324.8,3323.2,7.7]
[1641994209063,0.19046833,3325.3,3324.0,7.7]
[1641994209266,0.75214,3326.9,3325.3,7.7]
[1641994209469,0.1203,3327.5,3326.5,11.39]
[1641994209670,0.033,3327.7,3326.8,0.55]
[1641994209968,0.37163662,3327.9,3327.2,7.7]
[1641994210163,0.025,3328.6,3327.9,5.7]
[1641994210367,1.29782151,3328.7,3328.6,1.70818607]
[1641994210562,1.80761577,3329.6,3328.6,1.4272]
[1641994210804,16.4,3328.7,3328.6,1.4272]
[1641994211003,0.2,3330.5,3328.6,2.0272]
[1641994211211,22.2506839,3332.2,3329.6,4.53]
[1641994211212,0.03534914,3331.7,3329.6,4.53]
[1641994211398,20.7482215,3332.2,3329.7,2.312]
[1641994211607,96.046443,3331.5,3329.8,0.362]
[1641994211801,42.538878,3332.0,3329.9,18.03242632]
[1641994212006,0.5686,3333.0,3329.9,18.03242632]
[1641994212007,0.5686,3333.0,3331.5,6.70131553]
[1641994212210,0.75058,3334.5,3332.1,7.7]
[1641994212402,30.822913,3332.6,3332.2,0.362]
[1641994212602,100.0,3334.2,3332.7,0.01217964]
[1641994212901,0.01080004,3334.2,3332.8,0.362]
[1641994213099,0.01080004,3334.2,3332.6,0.2023]
[1641994213100,1.6745709,3333.6,3332.9,2.50019997]
[1641994213303,33.596613,3334.1,3333.0,2.0]
[1641994213503,33.596613,3334.1,3332.9,1.17869997]
[1641994213504,22.89716408,3333.5,3333.1,0.362]
[1641994213810,2.00625266,3333.4,3332.9,0.2644]
[1641994214003,10.580798,3333.4,3332.5,0.7363]
[1641994214203,2.7158477,3334.8,3333.2,7.75]
[1641994214204,1.42298312,3334.8,3333.2,7.75]
[1641994214406,0.01200799,3334.8,3333.3,7.75]
[1641994214646,7.896e-05,3334.1,3334.0,0.48353752]
[1641994214843,0.0045,3336.3,3334.0,0.76913752]
[1641994214844,0.362,3336.0,3334.0,0.76913752]
[1641994215146,0.1199,3335.9,3334.0,0.58563752]
[1641994215356,0.025,3336.5,3334.0,0.58563752]
[1641994215357,33.1583287,3339.6,3334.2,7.75]
[1641994215544,0.1955,3337.7,3334.3,115.82928038]
[1641994215761,3.685e-05,3336.3,3334.7,4.48]
[1641994215947,25.6613487,3339.6,3335.5,7.75]
[1641994216146,0.5,3337.2,3336.2,0.1734]
[1641994216397,2.04291774,3337.9,3337.2,26.5]
[1641994216649,30.8303487,3339.6,3337.2,26.5]
[1641994216650,0.00852635,3337.8,3337.2,0.7172]
[1641994216950,79.59562033,3337.8,3337.2,2.3]
[1641994217151,0.01377191,3339.7,3337.3,35.87723032]
[1641994217152,46.170701,3337.7,3337.3,35.87723032]
[1641994217346,0.01377191,3339.7,3337.3,35.87723032]
[1641994217347,1.95924211,3338.9,3338.1,1.75802187]
[1641994217554,0.08512644,3339.9,3338.8,0.01294006]
[1641994217750,1.81065222,3340.0,3339.0,6.89921812]
[1641994217950,48.570148,3339.8,3339.1,18.24442632]
[1641994218153,0.0164,3340.2,3339.2,0.362]
[1641994218154,66.72895889,3339.9,3339.2,0.362]
[1641994218429,3.4,3339.7,3339.2,4.28232577]
[1641994218627,100.0,3339.8,3339.3,0.00341054]
[1641994218826,0.09257086,3340.9,3340.1,0.01251236]
[1641994219034,0.09257086,3340.9,3340.1,0.9636]
[1641994219227,6.15,3340.7,3339.7,1.05562637]
[1641994219428,100.0,3340.8,3339.7,0.00023332]
[1641994219628,0.00511581,3341.0,3339.8,0.12140527]
[1641994219829,1.62627666,3340.3,3339.8,5.27e-06]
[1641994220031,7.85,3340.8,3338.1,0.13819997]
[1641994220235,7.85,3340.8,3338.4,3.5]
[1641994220236,3.65831027,3340.2,3338.4,3.5]
[1641994220428,0.89887066,3340.9,3338.6,7.85]
[1641994220628,0.89887066,3340.9,3338.7,0.00515791]
[1641994220831,0.89887066,3340.9,3339.6,0.01276461]
[1641994220832,0.0091944,3340.8,3339.6,0.01276461]
[1641994221234,0.0091944,3340.8,3339.7,0.00568424]
[1641994221534,64.18046425,3340.7,3339.8,0.1197]
[1641994221733,0.15881106,3341.7,3339.9,16.05408392]
[1641994221931,0.61223967,3343.0,3340.3,0.05596051]
[1641994221932,2.482974,3340.6,3340.3,0.05596051]
[1641994222150,0.61223967,3343.0,3340.3,0.05596051]
[1641994222151,0.61223967,3343.0,3340.9,0.03125]
[1641994222351,1.82352984,3341.9,3340.9,0.03125]
[1641994222654,1.82352984,3341.9,3340.5,0.25]
[1641994222655,0.5,3341.4,3340.5,0.25]
[1641994222852,0.01080004,3342.8,3341.3,0.01284648]
[1641994223049,0.61223967,3343.0,3341.4,0.4816]
[1641994223252,0.1123,3342.9,3341.5,0.04517998]
[1641994223462,1.01040215,3344.0,3342.4,0.85118028]
[1641994223663,0.0150715,3347.1,3343.7,0.01212866]
[1641994223664,0.1182,3346.1,3343.7,0.01212866]
[1641994223856,0.2,3347.0,3345.0,1.82137094]
[1641994223857,0.24018784,3345.6,3345.0,1.82137094]
[1641994224055,0.24018784,3345.6,3345.3,0.01264383]
[1641994224251,5.99364743,3345.5,3345.4,0.212]
[1641994224656,0.57810427,3345.9,3345.4,14.84856381]
[1641994224853,0.15425379,3346.0,3345.4,14.84856381]
[1641994225053,2.27375263,3345.8,3345.4,4.97280639]
[1641994225256,26.685042,3345.9,3345.5,0.12120527]
[1641994225455,0.3195,3347.0,3345.6,4.97280639]
[1641994225456,46.656877,3345.7,3345.6,4.97280639]
[1641994225656,0.00284211,3346.3,3345.6,5.09344324]
[1641994225661,48.333286,3345.8,3345.6,5.09344324]
[1641994225897,0.00284211,3346.3,3345.7,0.1195]
[1641994226197,3.65506971,3346.2,3345.8,53.50653916]
[1641994226395,3.65506971,3346.2,3346.1,0.01241721]
[1641994226396,113.10391113,3346.2,3346.1,0.01241721]
[1641994226601,0.3195,3349.1,3346.2,0.03125]
[1641994226602,0.2,3349.1,3346.2,0.03125]
[1641994226798,0.2,3349.1,3346.3,53.61180986]
[1641994227003,0.0022737,3347.3,3346.9,4.53]
[1641994227198,0.2,3349.1,3346.9,4.53]
[1641994227199,195.36032566,3348.2,3347.5,0.2731]
[1641994227405,10.0,3349.6,3347.5,0.2731]
[1641994227410,2.17654162,3348.7,3347.6,37.71808354]
[1641994227607,115.606199,3348.1,3347.7,36.14350239]
[1641994227801,0.00224,3348.1,3347.8,0.25759997]
[1641994228000,118.591341,3348.0,3347.9,4.92280639]
[1641994228201,57.8684,3348.0,3347.9,5.04220639]
[1641994228400,39.5,3348.0,3347.9,5.04220639]
[1641994228616,2.77068621,3349.4,3347.9,76.24270515]
[1641994228814,10.0,3349.6,3349.0,4.53]
[1641994228815,6.80079621,3349.6,3349.0,4.53]
[1641994229006,33.36453192,3349.3,3349.1,2.362]
[1641994229210,23.95472584,3349.5,3349.2,1.01184969]
[1641994229423,5.49209621,3349.6,3349.3,22.95523271]
[1641994229657,0.1194,3351.3,3350.3,2.13068981]
[1641994229854,2.20977876,3351.4,3350.5,1.84656175]
[1641994230054,0.2,3351.7,3350.6,2.362]
[1641994230261,0.025,3351.7,3351.1,0.01270583]
[1641994230470,1.45412038,3351.9,3351.1,0.01270583]
[1641994230471,1.37912038,3351.9,3351.6,0.01287531]
[1641994230665,0.00533333,3354.2,3351.8,0.01253731]
[1641994230857,2.01069036,3354.8,3351.9,4.99200639]
[1641994230858,2.12989036,3354.8,3351.9,4.99200639]
[1641994231053,2.12989036,3354.8,3353.8,2.614e-05]
[1641994231054,1.64678463,3354.1,3353.8,2.614e-05]
[1641994231254,1.64678463,3354.1,3352.9,0.01290666]
[1641994231255,7.95,3353.9,3352.9,6.66e-06]
[1641994231455,1.82576099,3354.8,3353.0,11.33111079]
[1641994231456,6.9,3353.8,3353.0,11.33111079]
[1641994231660,0.1192,3353.7,3350.4,0.74562]
[1641994231862,6.8,3353.5,3353.1,0.00511581]
[1641994232164,6.8,3353.5,3352.6,0.01249218]
[1641994232165,44.58529053,3353.6,3353.2,3.04009337]
[1641994232365,2.0,3354.6,3351.1,4.373e-05]
[1641994232366,7.95,3353.3,3351.1,4.373e-05]
[1641994232559,7.95,3353.0,3350.3,0.01248865]
[1641994232758,7.95,3351.1,3349.7,9.47e-06]
[1641994232959,7.95,3351.1,3345.9,0.5]
[1641994232960,2.1097,3351.0,3350.4,4.739e-05]
[1641994233157,2.02082959,3350.6,3350.4,4.739e-05]
[1641994233390,3.0,3350.5,3347.1,0.1193]
[1641994233593,3.0,3350.5,3345.6,2.98522]
[1641994233594,0.02440478,3348.7,3347.2,0.00740005]
[1641994233798,0.78700478,3348.7,3347.5,0.01275689]
[1641994233993,4.54289246,3347.8,3345.1,0.01211581]
[1641994234193,4.54289246,3347.8,3344.4,1.0046567]
[1641994234194,7.95,3347.7,3344.4,1.01687506]